Cogmind - Beta 16 @@@ ROGUE MODE // 2026.01.25 @ 17:06:45 Player: Bikerider58 Result: Self-destructed Performance ------------- Evolutions (7) 3500 Regions Visited (25) 5000 Robots Destroyed (336) 1680 Value Destroyed (15558) 15558 Prototype IDs (72) 1440 Alien Tech Used (6) 1200 Bonus (8421) 8421 TOTAL SCORE: 36799 Bonus ------- High Alert Combat Kills 1459 Follower Combat Kills 2314 Awakened Behemoth Slayer 1000 Network Hubs Disabled 400 Met Data Miner 300 Met Imprinter 300 Was Imprinted 300 Built Enhanced Grunts 300 A7 Reached Mainframe 300 Met R17 at Cetus 500 Used Core Reset Matrix 3000 Friendly Fire -1752 Cogmind --------- Core Integrity 605/1300 Matter 290/300 Energy 16/100 System Corruption 8% Temperature Cool (18) Movement Immobile (Siege) +NEM 1 Location -3/Section 7 Parts ------- > --- POWER (2) -------- (None) > --- PROPULSION (6) --- Biometal Medium Treads High-density Centrium Heavy Treads High-density Centrium Heavy Treads > --- UTILITY (8) ------ Experimental Cooling System High-capacity Storage Unit Experimental Optical Array Advanced Weapon Cycler Heavy Regenerative Plating Graphene Brace Advanced Thermal Shield > --- WEAPON (5) ------- Cooled Phase Gun Cooled Phase Gun Cooled Phase Gun Cooled Phase Gun > --- INVENTORY (20) --- Improved Heavy Siege Treads Advanced Sensor Array Precision Energy Filter Experimental EM Shield Experimental Force Field Advanced Point Defense System Long-range Tractor Beam Hacking Drone Bay (1/1) Subatomic Replicator Cooled Phase Gun Enhanced Nova Cannon Long-range Missile Launcher Sigix Broadsword CR-A16's Behemoth Slayer Peak State ------------ > --- POWER ------------ Particle Reactor Matter Drive > --- PROPULSION ------- Medium Treads Biometal Medium Treads High-density Centrium Heavy Treads High-density Centrium Heavy Treads > --- UTILITY ---------- High-capacity Storage Unit Enhanced Optical Array Advanced Signal Interpreter Centrium Heavy Armor Plating Phase Armor Graphene Brace > --- WEAPON ----------- Compact HERF Cannon KE Penetrator Advanced KE Penetrator Core Stripper > --- INVENTORY -------- Improved Heavy Siege Treads Coolant Network Advanced Sensor Array Precision Energy Filter Advanced Weapon Cycler Zionite Weapon Casing Thermal Barrier Experimental EM Shield Experimental Force Field Advanced Point Defense System Long-range Tractor Beam Hacking Drone Bay Subatomic Replicator Nova Cannon Long-range Missile Launcher Sigix Broadsword CR-A16's Behemoth Slayer [Rating: 205] Favorites ----------- Power Compact Particle Reactor Engine Cooled Ion Engine Power Core Light Nuclear Core Reactor Compact Particle Reactor Propulsion Improved Flight Unit Treads Centrium Heavy Treads Leg Flexi-carbon Leg Wheel Armored Wheel Hover Unit Antigrav System Flight Unit Improved Flight Unit Utility Enhanced Optical Array Device Advanced Sensor Array Storage High-capacity Storage Unit Processor Enhanced Optical Array Hackware Hacking Suite Protection Medium Regenerative Plating Artifact Phase Armor Weapon Advanced KE Penetrator Energy Gun Cooled Phase Gun Energy Cannon Nova Cannon Ballistic Gun Advanced KE Penetrator Ballistic Cannon Linear Accelerator Launcher Missile Launcher Impact Weapon Flail Slashing Weapon Greatsword Piercing Weapon CR-A16's Pointy Stick Special Melee Weapon Datajack Build | -11 -10 -9 -9 -8 -7 -7 -7 -7 -6 -6 -6 -6 -6 -5 -5 -5 -5 -5 -5 -5 -5 -4 -3 -3 -3 ------- Run | Yrd Mat Mat Sto Mat Fac Low Low Zio Pro Fac Low Low Dat Pro Fac Was Fac Ext Cet Arc Hub Fac Res Qua Sec Slots Evolved 14 | . . 2 . 2 2 . . . . 2 . . . . 2 . . . . . . 2 2 . . Power 1 | . . . . . . . . . . . . . . . . . . . . . . . 1 . . Propulsion 4 | . . 1 . 1 . . . . . 1 . . . . 1 . . . . . . . . . . Utility 6 | . . 1 . 1 1 . . . . 1 . . . . . . . . . . . 1 1 . . Weapon 3 | . . . . . 1 . . . . . . . . . 1 . . . . . . 1 . . . Parts Attached 253 | 7 7 16 14 26 12 3 . 1 4 33 3 6 . 7 7 8 7 14 9 6 5 2 12 30 14 Power 23 | 1 . 2 1 2 1 1 . . 1 3 . . . 1 . . . 1 1 . . . 3 4 1 Engine 7 | 1 . 2 1 2 . . . . . 1 . . . . . . . . . . . . . . . Core 3 | . . . . . 1 1 . . 1 . . . . . . . . . . . . . . . . Reactor 13 | . . . . . . . . . . 2 . . . 1 . . . 1 1 . . . 3 4 1 Propulsion 63 | 2 4 5 2 8 4 . . . 1 12 1 3 . 3 1 3 1 2 2 . . . 2 6 1 Treads 32 | 2 1 2 2 8 . . . . . . . . . . . 3 1 2 2 . . . 2 6 1 Leg 9 | . . . . . . . . . . 5 1 . . 2 1 . . . . . . . . . . Wheel 6 | . 3 3 . . . . . . . . . . . . . . . . . . . . . . . Hover 7 | . . . . . . . . . . 4 . 3 . . . . . . . . . . . . . Flight 9 | . . . . . 4 . . . 1 3 . . . 1 . . . . . . . . . . . Utility 87 | 2 3 2 4 9 5 . . . 1 9 2 . . 3 2 2 3 4 3 5 2 . 5 15 6 Device 44 | 1 2 1 2 2 1 . . . 1 2 2 . . 2 1 1 1 1 1 5 2 . 3 10 3 Storage 4 | 1 1 . . . . . . . . . . . . . 1 . 1 . . . . . . . . Processor 12 | . . . . 4 1 . . . . 4 . . . . . . . . . . . . . 1 2 Hackware 5 | . . . . . 3 . . . . 1 . . . 1 . . . . . . . . . . . Protection 21 | . . 1 2 3 . . . . . 2 . . . . . 1 1 3 2 . . . 2 3 1 Artifact 1 | . . . . . . . . . . . . . . . . . . . . . . . . 1 . Weapon 80 | 2 . 7 7 7 2 2 . 1 1 9 . 3 . . 4 3 3 7 3 1 3 2 2 5 6 Energy Gun 19 | . . 2 1 3 . . . . . 1 . . . . . 1 2 2 1 . . . . . 6 Energy Cannon 5 | . . . . . . . . . . 1 . . . . . 2 . . . . . . 1 1 . Ballistic Gun 38 | 2 . 4 5 2 . . . . . 6 . 2 . . 2 . . 4 2 1 3 2 1 2 . Ballistic Cannon 2 | . . . . . . . . . . . . . . . . . 1 . . . . . . 1 . Launcher 3 | . . . . 1 . 1 . . . . . 1 . . . . . . . . . . . . . Special Weapon . | . . . . . . . . . . . . . . . . . . . . . . . . . . Impact Weapon 4 | . . 1 . . . . . . . 1 . . . . 1 . . . . . . . . 1 . Slashing Weapon 4 | . . . . 1 2 . . . . . . . . . . . . 1 . . . . . . . Piercing Weapon 4 | . . . . . . 1 . 1 1 . . . . . 1 . . . . . . . . . . Special Melee Weapon 1 | . . . 1 . . . . . . . . . . . . . . . . . . . . . . Unidentified Prototypes 48 | . . . 3 1 . . . . . 8 . . . 6 2 . . 2 6 . . . 1 14 5 Corrupted Parts 3 | . . . . . . . . . . . . . . . . . . 1 1 . 1 . . . . System Corruption 13 | . . . . . . . . . . . . . . . . . . 7 1 . 5 . . . . Parts Lost 35 | . . 2 1 4 . . . . 3 4 . . . . 1 2 1 6 . . . . 2 2 7 Power 5 | . . . . . . . . . 1 1 . . . . . . . . . . . . 1 . 2 Propulsion 8 | . . 1 . 3 . . . . . . . . . . . . . 2 . . . . . . 2 Utility 9 | . . . 1 1 . . . . 1 1 . . . . . 1 . 1 . . . . . 1 2 Weapon 13 | . . 1 . . . . . . 1 2 . . . . 1 1 1 3 . . . . 1 1 1 Highest Loss Streak 5 | . . 1 1 1 . . . . 3 4 . . . . 1 2 1 4 . . . . 1 1 5 To Critical Strikes 1 | . . . . . . . . . . . . . . . . . . . . . . . 1 . . Average Backups 14 | . 12 24 24 24 5 5 5 5 4 4 5 5 5 5 10 12 16 17 18 18 17 17 17 17 17 Power . | . . 1 1 1 . . . . . . 1 1 1 . 1 1 1 1 1 1 1 1 . . . Propulsion 2 | . 2 5 6 6 1 1 1 1 . . . . . . . 3 5 1 1 2 2 2 2 . 1 Utility 6 | . 5 10 8 8 2 3 3 3 3 1 1 1 1 1 5 6 6 8 8 8 7 8 8 9 8 Weapon 4 | . 3 6 6 6 1 1 1 1 1 3 3 3 3 3 3 2 3 7 7 7 7 6 6 6 5 Tool/Special . | . . . . . . . . . . . . . . . . . . . . . . . . . . Unused Backups 60 | . . 6 11 12 4 . . . . . . . . 1 . 1 3 1 6 . . . 3 7 5 Power 3 | . . . 2 . . . . . . . . . . 1 . . . . . . . . . . . Propulsion 12 | . . . 4 3 . . . . . . . . . . . . 2 . . . . . . 2 1 Utility 21 | . . . 1 6 2 . . . . . . . . . . 1 1 1 5 . . . 2 1 1 Weapon 21 | . . 6 4 2 1 . . . . . . . . . . . . . 1 . . . 1 4 2 Tool/Special 3 | . . . . 1 1 . . . . . . . . . . . . . . . . . . . 1 Average Slot Usage (%) 91 | . 100 99 100 99 95 91 92 92 86 96 99 99 100 99 97 78 81 80 81 81 82 83 85 86 74 Engine 2 | . 14 11 11 9 . . . . . . . . . . . . . . . . . . . . . Reactor 3 | . . . . . . . . . . 2 6 6 6 6 5 5 5 5 5 5 5 5 8 8 3 Treads 12 | . 13 11 11 31 . . . . . . . . . . . 15 17 16 17 17 17 15 14 18 17 Leg 4 | . . . . . . . . . . 15 31 28 13 23 27 2 . . . . . . . . . Wheel 3 | . 14 21 22 4 . . . . . . . . . . . . . . . . . . . . . Flight 3 | . . . . . 29 30 30 30 29 11 . . . 4 5 . . . . . . . . . . Device 8 | . 14 20 11 4 5 5 6 7 9 8 7 6 6 5 4 4 4 4 4 6 7 9 14 12 11 Storage 4 | . 14 11 11 9 . . . . . . . . . . 4 5 5 5 5 5 5 5 4 4 4 Processor 10 | . . . . 8 11 7 7 7 7 18 20 20 20 20 17 17 17 14 11 11 11 10 9 13 6 Hackware 4 | . . . . . 17 23 23 19 15 7 6 6 6 6 5 5 5 5 5 5 5 5 2 . . Protection 4 | . . 1 10 13 1 1 . 2 4 3 4 6 6 6 . . . 2 5 3 2 5 5 2 3 Energy Gun 2 | . . 11 6 4 . . . . . . . . . . . 3 3 2 2 . 4 . . . 21 Ballistic Gun 14 | . 28 9 9 12 8 . . . . 16 20 19 17 19 21 13 11 16 18 22 17 24 21 16 . Peak Build Rating 205 | 7 11 22 32 42 46 46 46 47 47 74 71 79 82 96 107 114 116 114 136 132 134 149 167 205 203 Average Rating 88 | 5 8 17 25 37 43 43 43 44 43 64 69 72 80 92 104 103 113 108 119 127 127 146 161 168 186 On Entrance 78 | . 7 11 22 29 40 43 46 43 47 34 71 70 79 79 96 107 114 111 108 132 128 134 146 159 190 Avg Prop Armor Cover (%) 6 | . 12 9 7 11 . . . . . 3 2 4 7 6 1 2 . . . . . . . 5 4 Naked Turns . | . . . . . . . . . . . . . . . . . . . . . . . . . . Heaviest Build 166 | 12 88 97 101 110 19 18 16 18 18 37 37 39 39 41 62 62 83 81 96 96 94 101 133 160 166 Greatest Support 243 | 40 40 28 24 86 20 20 20 20 20 85 85 85 40 90 105 220 220 220 230 230 230 230 230 243 243 Greatest Overweight (x) 8 | . 8 4 4 4 . . . . . 1 . . . . . . . . . . . . . . 1 Average Overweight (x) . | . 3 3 3 1 . . . . . . . . . . . . . . . . . . . . . Largest Inventory Capacity 25 | 8 25 25 25 25 25 5 5 5 5 5 5 5 5 5 15 15 20 20 20 20 20 20 20 20 20 Average Capacity 16 | 7 23 25 25 25 5 5 5 5 5 5 5 5 5 5 13 15 19 20 20 20 20 20 20 20 20 Most Carried 25 | 1 24 25 25 25 25 5 5 5 5 5 5 5 5 5 13 15 20 20 20 20 20 20 20 20 20 Average Carried 15 | . 12 24 24 24 5 5 5 4 4 4 5 5 5 4 10 14 19 18 19 20 19 19 19 19 19 Final Capacity 25 | 8 25 25 25 25 5 5 5 5 5 5 5 5 5 5 15 15 20 20 20 20 20 20 20 20 20 Final Carried 25 | 1 24 25 24 25 5 5 5 5 5 5 5 5 5 5 12 15 20 19 20 20 19 20 20 20 16 Class Distribution -------------------- 25% | Scavenger-Skirmisher 21% | Scavenger-Tank 19% | Mutant 10% | Hacker-Sprinter 5% | Scavenger-Mutant 4% | Scavenger-Gunner 3% | Tank Dominant Class ---------------- Mutant | -10/Materials Mutant | -9/Materials Mutant | -9/Storage Mutant | -8/Materials Hacker-Sprinter | -7/Factory Hacker-Sprinter | -7/Lower Caves Hacker-Sprinter | -7/Lower Caves Hacker-Sprinter | -7/Zion Hacker-Sprinter | -6/Proximity Caves Scavenger-Skirmisher | -6/Factory Scavenger-Skirmisher | -6/Lower Caves Scavenger-Skirmisher | -6/Lower Caves Scavenger-Skirmisher | -6/Data Miner Scavenger-Skirmisher | -5/Proximity Caves Scavenger-Skirmisher | -5/Factory Scavenger-Tank | -5/Waste Scavenger-Tank | -5/Factory Scavenger-Tank | -5/Extension Scavenger-Tank | -5/Cetus Scavenger-Tank | -5/Archives Commander-Tank | -5/Hub_04(d) Scavenger-Gunner | -4/Factory Scavenger-Tank | -3/Research Scavenger-Tank | -3/Quarantine Tank | -3/Section 7 Resources | -11 -10 -9 -9 -8 -7 -7 -7 -7 -6 -6 -6 -6 -6 -5 -5 -5 -5 -5 -5 -5 -5 -4 -3 -3 -3 ----------- Run | Yrd Mat Mat Sto Mat Fac Low Low Zio Pro Fac Low Low Dat Pro Fac Was Fac Ext Cet Arc Hub Fac Res Qua Sec Matter Collected 12592 | 282 652 368 401 1164 199 169 27 10 47 1022 354 160 . 214 323 697 226 672 397 393 115 1026 1287 1935 452 Remotely 2787 | . . . . . . . . . . . . . . . . . . . . 260 . 570 986 971 . Salvage Created 20024 | 99 510 816 511 1651 237 291 . . 107 1065 325 251 . 364 586 1710 584 972 421 295 56 1947 1902 2153 3171 Parts 900 | 5 24 57 24 100 13 16 . . 12 36 11 14 . 12 28 44 33 49 18 14 4 79 127 103 77 Haulers Intercepted 19 | . . 4 4 2 1 . . . . 3 . . . . 1 . . . . . . 2 1 . 1 Recyclers Shooed 5 | . . . 1 . . . . . . . . . . . . . . 1 . . . 1 2 . . Parts Field Recycled . | . . . . . . . . . . . . . . . . . . . . . . . . . . Retrieved Matter . | . . . . . . . . . . . . . . . . . . . . . . . . . . Parts Self-Destructed 61 | . . . . . . 13 . . 17 . 4 16 . 11 . . . . . . . . . . . Prevented 1 | . . . . . . . . . . . 1 . . . . . . . . . . . . . . Parts Restored . | . . . . . . . . . . . . . . . . . . . . . . . . . . Kills | -11 -10 -9 -9 -8 -7 -7 -7 -7 -6 -6 -6 -6 -6 -5 -5 -5 -5 -5 -5 -5 -5 -4 -3 -3 -3 ------- Run | Yrd Mat Mat Sto Mat Fac Low Low Zio Pro Fac Low Low Dat Pro Fac Was Fac Ext Cet Arc Hub Fac Res Qua Sec Combat Hostiles Destroyed 237 | . 9 13 3 35 2 8 . . 1 9 5 4 . 5 4 6 9 16 2 1 1 17 22 28 37 Melee 3 | . . . . . 2 1 . . . . . . . . . . . . . . . . . . . Guns 176 | . 9 13 3 30 . . . . . 6 5 . . 2 4 6 1 12 2 1 1 17 22 17 25 Cannons 16 | . . . . . . . . . . . . . . . . . 6 1 . . . . . 9 . AOE 25 | . . . . 4 . 7 . . . 3 . 4 . 3 . . 1 3 . . . . . . . Classes Destroyed 25 | 2 4 4 1 4 1 2 . . 1 . 1 1 . 1 . 1 1 . . . . . . 1 . Worker 13 | . 2 1 2 . . . . . . 1 . . . . 1 . . . . . . 1 5 . . Builder 12 | . 1 . . 1 . . . . . . . . . . . . . . . . . 3 6 . 1 Tunneler 4 | 1 . 1 . 1 . . . . . . . . . . . . . . . . . . 1 . . Hauler 19 | . . 4 4 2 1 . . . . 3 . . . . 1 . . . . . . 2 1 . 1 Recycler 11 | 1 1 . 1 . . . . . . 2 . . . . 1 . . . . . . 3 1 . 1 Minesweeper 2 | . . . . . . 1 . . 1 . . . . . . . . . . . . . . . . Mechanic 2 | . . . . . . . . . . . . . . . . . 1 . . . . . . . 1 Operator 13 | . 1 2 2 1 1 . . . . 1 . . . . . . . . . 5 . . . . . Drone 1 | . . . . . . . . . . . . . . 1 . . . . . . . . . . . Watcher 15 | . . 2 2 1 3 . . . . 2 . . . . . . . 1 1 . . . . 1 2 Swarmer 32 | . . 4 . . . 4 . . . 3 1 4 . 4 . . . 4 . . . . 4 4 . Cutter 3 | . . . . 3 . . . . . . . . . . . . . . . . . . . . . Grunt 72 | . 9 6 1 20 . . . . . 2 . . . . 1 . 6 . . . 1 6 . 2 18 Brawler 3 | . . . . 1 . . . . . . . . . . . . . . . . . . . . 2 Duelist 3 | . . . 1 2 . . . . . . . . . . . . . . . . . . . . . Sentry 38 | . . 3 1 3 . . . . . 2 . . . . 3 . . 8 . 1 . 4 3 5 5 Specialist 5 | . . . . 5 . . . . . . . . . . . . . . . . . . . . . Hunter 19 | . . . . . . 1 . . . 1 . . . . . . . 2 . . . 2 4 5 4 Programmer 36 | . . . . . 2 . . . . 1 . . . . . . 2 . . . . 5 9 11 6 Heavy 3 | . . . . 1 . . . . . . . . . . . . . . . . . . 2 . . Behemoth 4 | . . . . . . . . . 1 . . . . . . . 1 1 . . . . . . 1 Compactor 6 | . . . . . . . . . . . . . . . . 6 . . . . . . . . . Cetus Guard 2 | . . . . . . . . . . . . . . . . . . . 2 . . . . . . S7 Guard 1 | . . . . . . . . . . . . . . . . . . . . . . . . . 1 Fortress 1 | . . . . . . . . . . . . . . . . . . . . . . . . 1 . Ranger 2 | . . . . . . . . . . . . 2 . . . . . . . . . . . . . Wasp 3 | . . . . . . 3 . . . . . . . . . . . . . . . . . . . Thug 1 | . . . . . . . . . . . . . . . . . . . 1 . . . . . . Savage 4 | . . . . . . . . . . . 1 1 . . . . . . 1 1 . . . . . Butcher 4 | . . . . . . . . . . . 2 . . . . . . 1 1 . . . . . . Mutant 1 | . . . . . . . . . . . 1 . . . . . . . . . . . . . . Best Kill Streak 11 | 1 6 3 3 4 2 4 . . 1 4 1 4 . 4 3 1 3 7 3 5 1 7 11 7 10 Combat Bots Only 10 | . 2 3 1 4 1 4 . . 1 3 1 4 . 4 2 1 3 7 2 1 1 6 6 7 10 Max Kills in Single Turn 3 | 1 1 1 3 3 1 2 . . 1 2 1 3 . 2 1 1 1 3 2 1 1 2 3 2 2 Gunslinging 1 | . . . . . . . . . . . . . . . . . . . 1 . . . 1 1 1 Exploded 3 | . . . . 3 . 2 . . . 1 . 3 . 2 . . 1 3 . . . . . . . Melee 1 | . . . . . 1 1 . . . . . . . . . . . . . . . . . . . Uniques/NPCs Destroyed 1 | . . . . . . . . . . . . . . . . . . . 1 . . . . . . A7 (-5/Cetus) Combat | -11 -10 -9 -9 -8 -7 -7 -7 -7 -6 -6 -6 -6 -6 -5 -5 -5 -5 -5 -5 -5 -5 -4 -3 -3 -3 -------- Run | Yrd Mat Mat Sto Mat Fac Low Low Zio Pro Fac Low Low Dat Pro Fac Was Fac Ext Cet Arc Hub Fac Res Qua Sec Hostile Shots Fired 1593 | . 51 79 18 227 21 12 . . 39 106 12 18 . 4 19 4 50 92 19 3 13 76 192 207 331 Missed 488 | . 15 19 2 72 15 5 . . 10 54 5 9 . 2 5 1 12 16 6 1 1 25 73 60 80 Hits 1105 | . 36 60 16 155 6 7 . . 29 52 7 9 . 2 14 3 38 76 13 2 12 51 119 147 251 Melee 16 | . . . . 8 . . . . . . 1 . . . . 3 . . . . . . . . 4 Projectile 1089 | . 36 60 16 147 6 7 . . 29 52 6 9 . 2 14 . 38 76 13 2 12 51 119 147 247 AOE 4 | . . . . 2 . . . . . . . . . . 1 . . . . . 1 . . . . Critical Strikes 38 | . . 1 . 6 . . . . 2 2 . . . . . 2 . 1 1 . 4 2 8 6 3 Actively Blocked 5 | . . . . . . . . . . . . . . . . . . . . . . . . 3 2 Part Disruptions 4 | . . . . . . . . . . . . . . . . . . . . . . 1 2 . 1 Damage Taken 19729 | . 496 639 369 2674 71 164 . . 618 873 135 168 . 32 658 146 805 1763 438 77 501 978 1587 2862 3675 Core 2025 | . 143 101 140 244 5 35 . . 189 27 . 43 . . 134 . 37 38 51 . 40 103 59 343 293 Absorbed by Shields 1732 | . . . . . . . . . . . . . . . . . . . 7 . . . 613 413 699 Reduced by Siege Mode 678 | . . . . . . . . . . . . . . . . . 45 168 6 . . 59 122 103 175 Redirected to Core 430 | . . . . . . . . . . . . . . . . . . . . . . . . 240 190 Ignored by Resistances 574 | . . . . . . . . . . . . . . . . . . 15 . . . . . . 559 Regen/Repaired (Parts) 2474 | . . . 31 368 46 37 . 44 15 . . . . . . . 148 . . 73 9 243 80 588 792 Core Remaining (%) 69 | 100 42 . 39 55 . . . . 67 . . . . 91 . . . . . . 70 91 . . . Volleys Fired 825 | 3 56 73 36 125 . 5 . . . 40 24 6 . 10 12 45 23 28 16 18 5 41 62 97 100 Largest 5 | 2 2 2 2 2 . 1 . . . 3 3 3 . 3 4 4 4 4 4 4 4 5 5 5 5 Hottest 308 | 40 40 90 90 126 . 30 . . . 99 94 99 . 99 132 175 239 186 240 134 166 175 173 308 224 Shots Fired 2403 | 6 112 146 56 244 . 5 . . . 106 57 10 . 26 45 138 62 107 54 72 20 199 236 281 421 Gun 2239 | 6 112 146 56 238 . . . . . 103 57 6 . 24 45 138 48 95 51 72 20 199 222 192 409 Cannon 143 | . . . . . . . . . . . . . . . . . 14 11 3 . . . 14 89 12 Launcher 21 | . . . . 6 . 5 . . . 3 . 4 . 2 . . . 1 . . . . . . . Special . | . . . . . . . . . . . . . . . . . . . . . . . . . . Kinetic 1711 | 6 112 118 46 178 . . . . . 102 57 6 . 24 45 124 34 94 41 72 15 199 222 216 . Thermal 588 | . . . . 60 . . . . . 1 . . . . . 14 17 5 1 . . . 14 55 421 Explosive 21 | . . . . 6 . 5 . . . 3 . 4 . 2 . . . 1 . . . . . . . Electromagnetic 83 | . . 28 10 . . . . . . . . . . . . . 11 7 12 . 5 . . 10 . Robot Hit Streak 34 | 3 17 20 13 33 . 6 . . . 15 21 3 . 10 19 17 15 26 5 8 5 15 12 34 27 Robot Miss Streak 10 | 1 2 10 2 2 . . . . . 2 2 1 . 3 2 3 3 3 4 4 2 4 6 6 5 Penetration Max 1 | . . . . . . . . . . 1 . 1 . 1 1 . 1 1 1 1 . 1 1 1 . Secondary Targets 32 | . 1 . . 4 . . . . . . . . . . . . . 4 1 . . 6 3 2 11 Max Gunslinging Chain 2 | . 1 . . 1 . . . . . . . . . . . . . 1 1 . . 1 2 2 1 Shots Hit Robots 1651 | 4 84 96 47 203 9 13 . . 8 68 39 5 . 13 33 93 39 85 41 45 12 135 125 146 308 Core Hits 729 | 3 28 43 20 87 4 13 . . 2 37 16 10 . 12 19 21 24 51 24 23 4 55 66 60 107 Critical Kills 64 | . . . . . . . . . . 11 4 2 . 2 5 4 . 4 1 2 . 12 10 7 . Critical Parts Destroyed 80 | . 1 1 2 . . . . . . 12 7 . . 3 5 . 2 4 . 4 . 18 13 8 . Critical Strikes 190 | . 1 1 2 2 . . . . 2 25 13 2 . 5 12 12 2 11 2 7 . 31 24 19 17 Burn 19 | . . . . 2 . . . . . . . . . . . . . . . . . . . . 17 Meltdown 1 | . . . . . . . . . . . . . . . . . . . . . . . . 1 . Destroy 153 | . 1 . 1 . . . . . . 20 13 2 . 5 11 12 2 9 1 7 . 31 24 14 . Blast 4 | . . . . . . . . . . . . . . . . . . . . . . . . 4 . Corrupt 1 | . . . . . . . . . . . . . . . . . . 1 . . . . . . . Smash 6 | . . 1 1 . . . . . . 3 . . . . 1 . . . . . . . . . . Sever 1 | . . . . . . . . . . . . . . . . . . 1 . . . . . . . Impale 5 | . . . . . . . . . 2 2 . . . . . . . . 1 . . . . . . Melee Attacks 128 | . . 3 12 3 23 23 5 1 10 21 . . . . 5 . 1 2 6 . 1 7 1 1 3 Kinetic 4 | . . . . . . . . . . . . . . . . . . . . . . . . 1 3 Impact 29 | . . 3 10 . . . . . . 11 . . . . 5 . . . . . . . . . . Slashing 51 | . . . . 3 23 16 3 . 1 . . . . . . . . 2 3 . . . . . . Piercing 42 | . . . . . . 7 2 1 9 10 . . . . . . 1 . 3 . 1 7 1 . . Sneak Attacks 31 | . . 2 5 . 6 2 . . 1 4 . . . . 1 . . 2 6 . . 2 . . . Combat Hostiles 2 | . . . . . 1 1 . . . . . . . . . . . . . . . . . . . Follow-up Attacks 2 | . . . . . 1 . . . 1 . . . . . . . . . . . . . . . . Damage Inflicted 41769 | 38 867 1204 970 3767 749 1307 . . 320 1671 246 379 . 459 483 1390 915 2561 1436 1530 257 4296 3744 4685 8495 Guns 32507 | 38 854 996 659 3166 . . . . . 530 246 13 . 125 342 1390 448 1806 1037 1530 257 4126 3593 3017 8334 Cannons 2260 | . . . . . . . . . . . . . . . . . 273 183 17 . . . 119 1668 . Explosions 3157 | . . 47 81 594 . 593 . . . 480 . 366 . 334 . . 194 428 . . . 40 . . . Melee 3687 | . . 161 213 . 749 714 . . 320 661 . . . . 127 . . 138 382 . . 107 . . 115 Ramming 158 | . 13 . 17 7 . . . . . . . . . . 14 . . 6 . . . 23 32 . 46 Kinetic 23304 | 38 854 628 515 2290 . . . . . 505 246 13 . 125 342 1223 518 1811 932 1530 190 4126 3593 3710 115 Thermal 11077 | . . 47 81 876 . . . . . 190 . . . . . 167 356 145 . . . . 119 762 8334 Explosive 2555 | . . . . 594 . 593 . . . 315 . 366 . 334 . . . 353 . . . . . . . Electromagnetic 1103 | . . 368 144 . . . . . . . . . . . . . 41 108 122 . 67 40 . 213 . Impact 997 | . . 161 213 . . . . . . 496 . . . . 127 . . . . . . . . . . Slashing 1816 | . . . . . 749 635 . . 56 . . . . . . . . 138 238 . . . . . . Piercing 759 | . . . . . . 79 . . 264 165 . . . . . . . . 144 . . 107 . . . Highest Corruption 30 | . . . 1 . 1 1 1 1 . 5 5 . . . . . . 7 8 8 14 2 12 30 8 Average Corruption 6 | . . . 1 . 1 1 1 1 . 1 4 . . . . . . 7 7 6 6 1 5 16 5 Corruption Purged 13 | . . . . . . . . . . . 5 . . . . . . . . 8 . . . . . Corruption Blocked . | . . . . . . . . . . . . . . . . . . . . . . . . . . Effects 248 | . . . 3 . 6 6 1 . . 10 15 . . . . . . 9 13 5 1 6 27 110 36 Message Errors 56 | . . . 1 . 2 2 . . . 3 3 . . . . . . 2 1 1 1 2 3 26 9 Matter Fused 65 | . . . . . 1 1 1 . . 1 4 . . . . . . 1 6 1 . 2 5 33 9 Heat Flow Errors 28 | . . . . . 1 1 . . . 2 2 . . . . . . 1 2 . . 1 2 13 3 Energy Discharges 23 | . . . . . 1 2 . . . 2 2 . . . . . . . 1 2 . . 4 9 . Parts Rejected 2 | . . . . . 1 . . . . . . . . . . . . . . . . . . 1 . Parts Fused 5 | . . . 1 . . . . . . . . . . . . . . . . . . . 2 2 . Data Loss (minor) 26 | . . . . . . . . . . 2 1 . . . . . . 3 2 1 . . 3 8 6 Data Loss (major) 4 | . . . . . . . . . . . 1 . . . . . . . . . . . . 3 . Misfires 10 | . . . 1 . . . . . . . 2 . . . . . . 2 . . . . 1 3 1 Alerts 4 | . . . . . . . . . . . . . . . . . . . 1 . . . 1 2 . Weapon Failures 25 | . . . . . . . . . . . . . . . . . . . . . . 1 6 10 8 Overload Shots 2 | . . . . . . . . . . . . . . . . . . . 1 . . . . . 1 Overflow Damage 1482 | . . 138 121 1 212 165 . . . 561 . . . . 127 . . 13 88 . . 8 . 32 16 Projectiles 72 | . . . . . . . . . . 40 . . . . . . . . . . . . . 32 . Explosions 96 | . . 17 . 1 . 33 . . . 45 . . . . . . . . . . . . . . . Melee 1314 | . . 121 121 . 212 132 . . . 476 . . . . 127 . . 13 88 . . 8 . . 16 Knockbacks 12 | . . 1 . . . . . . . 2 . . . . 1 . 1 . . . . 1 . 5 1 Impact 5 | . . 1 . . . . . . . 1 . . . . 1 . . . . . . 1 . . 1 Kinetic 6 | . . . . . . . . . . . . . . . . . 1 . . . . . . 5 . Secondary 1 | . . . . . . . . . . 1 . . . . . . . . . . . . . . . Self-Inflicted Damage 301 | . . 38 29 50 . 40 . . . . . 30 . . 114 . . . . . . . . . . Shots 8 | . . 1 1 1 . 2 . . . . . 1 . . 2 . . . . . . . . . . Rammed 7 | . 1 . 1 . . . . . . . . . . . . . . 1 . . . 1 2 . 1 Targets Rammed 10 | . 1 . 1 1 . . . . . . . . . . 1 . . 1 . . . 1 3 . 1 Kicked 1 | . . . . . . . . . . . . . . . 1 . . . . . . . . . . Crushed 2 | . . . . 1 . . . . . . . . . . . . . . . . . . 1 . . Highest Temperature 469 | . . . 3 126 242 164 . . 316 160 256 3 . 60 167 127 282 469 140 404 3 57 250 353 352 Average Temperature 67 | . . . 2 42 113 75 . . 139 24 108 2 . 20 66 49 93 110 82 184 3 16 26 58 58 Received Heat Transfer 3423 | . 264 171 96 1035 18 18 . . 416 141 38 . . . 63 . 231 180 45 . 27 126 16 120 418 Effects 11 | . . . . . . . . . 1 . . . . . . . 1 6 . 2 . . . 1 . Shutdowns 2 | . . . . . . . . . . . . . . . . . . 1 . . . . . 1 . Energy Bleed 5 | . . . . . . . . . 1 . . . . . . . 1 1 . 2 . . . . . Interference 3 | . . . . . . . . . . . . . . . . . . 3 . . . . . . . Short Circuit 1 | . . . . . . . . . . . . . . . . . . 1 . . . . . . . Siege Activations 28 | . . . . . . . . . . . . . . . . . 1 2 1 . . 4 6 8 6 Total Turns 516 | . . . . . . . . . . . . . . . . . 32 36 9 . . 52 67 165 155 Longest Duration 53 | . . . . . . . . . . . . . . . . . 32 35 9 . . 25 20 35 53 Martial Activations . | . . . . . . . . . . . . . . . . . . . . . . . . . . Shielding Activations . | . . . . . . . . . . . . . . . . . . . . . . . . . . Robots Disrupted . | . . . . . . . . . . . . . . . . . . . . . . . . . . Combat Hostiles . | . . . . . . . . . . . . . . . . . . . . . . . . . . Robots Corrupted 6 | . . 1 1 . . . . . . 4 . . . . . . . . . . . . . . . Combat Hostiles . | . . . . . . . . . . . . . . . . . . . . . . . . . . Parts Fried 9 | . . 2 1 . . . . . . 5 . . . . . . . . 1 . . . . . . Impact Corruptions 17 | . . 4 2 . . . . . . 8 . . . . 1 . . . . . . 1 . . 1 Robots Melted 13 | . . . . 1 . . . . . . . . . . . . . . . . . . . 1 11 Combat Hostiles 13 | . . . . 1 . . . . . . . . . . . . . . . . . . . 1 11 Parts Melted 66 | . . . . 4 . . . . . . . . . . . . . 2 . . . . 1 . 59 Heat Transferred 16743 | . . 50 100 2035 . . . . . 137 . . . . . 259 335 211 . . . . 111 703 12802 Parts Sabotaged 2 | . . . . . . . . . . . . . . . . . . . . . . . . . 2 Parts Stolen . | . . . . . . . . . . . . . . . . . . . . . . . . . . Parts Stripped 26 | . . . . . . . . . . . . . . . . . . . . . . . . 18 8 Power Chain Reactions 5 | . . 2 1 . . . . . . . . . . . . . 1 1 . . . . . . . Alert | -11 -10 -9 -9 -8 -7 -7 -7 -7 -6 -6 -6 -6 -6 -5 -5 -5 -5 -5 -5 -5 -5 -4 -3 -3 -3 ------- Run | Yrd Mat Mat Sto Mat Fac Low Low Zio Pro Fac Low Low Dat Pro Fac Was Fac Ext Cet Arc Hub Fac Res Qua Sec Maximum Alert Level 3 | . . . . 2 1 . . . . 3 . . . . 1 . . 1 1 1 2 2 2 2 3 Low Security (%) 53 | 100 100 100 100 42 63 . . . . 28 . . . . 67 100 100 43 19 65 35 67 48 . . Level 1 26 | . . . . 41 36 . . . . 14 . . . . 32 . . 56 80 34 43 19 35 55 18 Level 2 14 | . . . . 16 . . . . . 12 . . . . . . . . . . 20 13 16 44 52 Level 3 5 | . . . . . . . . . . 45 . . . . . . . . . . . . . . 29 Level 4 . | . . . . . . . . . . . . . . . . . . . . . . . . . . Level 5 . | . . . . . . . . . . . . . . . . . . . . . . . . . . High Security . | . . . . . . . . . . . . . . . . . . . . . . . . . . Max Security . | . . . . . . . . . . . . . . . . . . . . . . . . . . Peak Influence 900 | 5 94 125 174 445 235 . . . . 831 . . . . 233 65 118 385 305 232 445 461 612 620 900 Initial 339 | . 3 . 35 68 184 . . . . 150 . . . . 158 63 . 49 128 90 39 135 237 339 337 Average 231 | 1 20 76 25 228 184 . . . . 505 . . . . 186 4 26 186 228 167 239 202 242 427 578 Influence Increases 11014 | 10 321 477 494 1155 339 130 . . 40 1440 94 106 . 110 420 16 273 834 397 252 518 685 913 947 1043 Destroy 0b10 Robot/C 5460 | . 180 260 140 740 40 100 . . 20 480 60 80 . 80 80 . 180 380 160 80 200 340 560 560 740 Destroy 0b10 Robot/NC 535 | 10 25 50 55 30 25 10 . . 10 65 . . . 20 15 . 5 20 10 25 10 45 70 5 30 Destroy Leader 1196 | . 50 82 72 166 28 20 . . 10 126 10 10 . 10 32 . 40 46 . . 30 104 132 62 166 Allied During Kill 1190 | . . . 43 40 . . . . . 176 9 1 . . . . 13 342 170 105 240 . 51 . . Successful Hack 209 | . 6 36 11 25 62 . . . . 33 . . . . . . . . . . . . . 36 . Select Force Hacks 180 | . 60 . 60 30 30 . . . . . . . . . . . . . . . . . . . . Disable Machine 690 | . . 15 90 30 15 . . . . 135 . . . . 30 . . . 15 30 . 90 30 180 30 Destroy Structure 624 | . . 4 8 34 4 . . . . 80 . . . . 38 16 20 46 42 12 38 106 70 74 32 Advance Influence 300 | . . . . . . . . . . 150 . . . . 150 . . . . . . . . . . Partial Spotted 60 | . . . . . 60 . . . . . . . . . . . . . . . . . . . . Lose Combat Pursuer 570 | . . 30 15 60 75 . . . . 195 15 15 . . 75 . 15 . . . . . . 30 45 Influence Decreases 10126 | 5 326 392 416 913 509 318 47 . 40 656 667 317 . 96 254 196 171 705 401 367 353 510 761 951 755 Entered New Map 2172 | . 2 . 50 95 221 88 10 . . . 291 41 . . 6 117 . 53 103 137 73 142 215 265 263 Time Decay 6820 | 5 324 372 326 638 278 230 37 . 35 556 356 276 . 96 238 77 161 385 198 170 120 368 486 666 422 Lost Part 292 | . . 20 10 40 . . . . . 40 . . . . 10 2 . 60 . . . . 20 20 70 Lost Ally 823 | . . . 11 140 10 . . . 5 60 20 . . . . . 10 207 100 60 160 . 40 . . Purge Threat 19 | . . . 19 . . . . . . . . . . . . . . . . . . . . . . Squads Dispatched 83 | . 4 2 7 12 6 . . . . 9 . . . . 5 . 3 3 . . 3 7 7 6 9 Investigation 23 | . 3 . 4 2 4 . . . . 2 . . . . 2 . 2 . . . . . 1 1 2 Extermination 16 | . . . . . 1 . . . . 2 . . . . 1 . 1 . . . . 2 3 5 1 Reinforcement 33 | . 1 2 3 10 1 . . . . 3 . . . . 2 . . 3 . . 1 4 2 . 1 Assault 6 | . . . . . . . . . . 1 . . . . . . . . . . 2 . 1 . 2 Garrison 5 | . . . . . . . . . . 1 . . . . . . . . . . . 1 . . 3 Intercept . | . . . . . . . . . . . . . . . . . . . . . . . . . . Searches Triggered . | . . . . . . . . . . . . . . . . . . . . . . . . . . Data Miner Redirects 4 | . . . . . . . . . . . . . . . 1 . 1 . . . . . . 1 1 Construction Impeded 8 | . . . . . . . . . . 1 . . . . . . . 2 . . 1 2 1 . 1 Haulers Reinforced 3 | . . . . . . . . . . 1 . . . . 1 . . . . . . 1 . . . Active Scanning Responses . | . . . . . . . . . . . . . . . . . . . . . . . . . . Cargo Convoy Interrupts . | . . . . . . . . . . . . . . . . . . . . . . . . . . Stealth | -11 -10 -9 -9 -8 -7 -7 -7 -7 -6 -6 -6 -6 -6 -5 -5 -5 -5 -5 -5 -5 -5 -4 -3 -3 -3 --------- Run | Yrd Mat Mat Sto Mat Fac Low Low Zio Pro Fac Low Low Dat Pro Fac Was Fac Ext Cet Arc Hub Fac Res Qua Sec Distress Signals 30 | . 3 1 2 3 1 . . . 1 4 . . . . 1 . . 2 2 . 2 2 . 3 3 Communications Jammed 18 | . . . . . . . . . . . . . . . . . . . . . . . 10 8 . Distress Signals 12 | . . . . . . . . . . . . . . . . . . . . . . . 4 8 . Times Spotted 449 | . 19 19 33 52 16 8 3 . 5 33 10 9 . 2 8 6 15 18 11 14 17 27 29 36 59 Peak Tracking Total 9 | . 5 4 4 6 5 4 3 . 4 8 4 4 . 1 4 2 5 6 5 2 5 4 4 4 9 Tactical Retreats 26 | . . 2 1 4 4 1 . . . 4 1 1 . . 3 . 1 . . . . . . 2 2 Traps | -11 -10 -9 -9 -8 -7 -7 -7 -7 -6 -6 -6 -6 -6 -5 -5 -5 -5 -5 -5 -5 -5 -4 -3 -3 -3 ------- Run | Yrd Mat Mat Sto Mat Fac Low Low Zio Pro Fac Low Low Dat Pro Fac Was Fac Ext Cet Arc Hub Fac Res Qua Sec Traps Triggered 19 | . 2 . 4 2 . . . . . 6 . . . . 2 . . . . . . . . 3 . Indirectly . | . . . . . . . . . . . . . . . . . . . . . . . . . . Trap Hack Attempts 36 | . . . 36 . . . . . . . . . . . . . . . . . . . . . . Triggered . | . . . . . . . . . . . . . . . . . . . . . . . . . . Disarmed . | . . . . . . . . . . . . . . . . . . . . . . . . . . Reprogrammed 4 | . . . 4 . . . . . . . . . . . . . . . . . . . . . . Reused . | . . . . . . . . . . . . . . . . . . . . . . . . . . Traps Extracted 4 | . . . 4 . . . . . . . . . . . . . . . . . . . . . . Installed . | . . . . . . . . . . . . . . . . . . . . . . . . . . Triggered . | . . . . . . . . . . . . . . . . . . . . . . . . . . Most Traps Carried 4 | . . . 4 4 4 . . . . . . . . . . . . . . . . . . . . Machines | -11 -10 -9 -9 -8 -7 -7 -7 -7 -6 -6 -6 -6 -6 -5 -5 -5 -5 -5 -5 -5 -5 -4 -3 -3 -3 ---------- Run | Yrd Mat Mat Sto Mat Fac Low Low Zio Pro Fac Low Low Dat Pro Fac Was Fac Ext Cet Arc Hub Fac Res Qua Sec Machines Disabled 48 | . . 1 6 2 1 . . . . 9 . . . . 2 . . 2 1 2 . 6 2 12 2 Max in Single Turn 3 | . . 1 1 1 1 . . . . 3 . . . . 2 . . 2 1 1 . 3 1 1 1 Garrison Access 8 | . . . . 1 2 . . . . 2 . . . . . . . . . . 1 1 1 . . Network Hub 2 | . . . . . . . . . . . . . . . . . . . . . 2 . . . . Energy Cycler 1 | . . . . . . . . . . . . . . . . . . 1 . . . . . . . Machines Repaired . | . . . . . . . . . . . . . . . . . . . . . . . . . . Machines Dismantled . | . . . . . . . . . . . . . . . . . . . . . . . . . . Machines Sabotaged . | . . . . . . . . . . . . . . . . . . . . . . . . . . Overloaded Fab Kills . | . . . . . . . . . . . . . . . . . . . . . . . . . . Hacking | -11 -10 -9 -9 -8 -7 -7 -7 -7 -6 -6 -6 -6 -6 -5 -5 -5 -5 -5 -5 -5 -5 -4 -3 -3 -3 --------- Run | Yrd Mat Mat Sto Mat Fac Low Low Zio Pro Fac Low Low Dat Pro Fac Was Fac Ext Cet Arc Hub Fac Res Qua Sec Machines Accessed 78 | . 8 6 8 7 17 1 1 . . 8 2 . 4 . 3 . 2 . . . . 3 3 3 2 Terminals 30 | . 6 4 5 3 11 . . . . . . . . . . . . . . . . 1 . . . Fabricators 6 | . . . . . 2 . . . . 2 . . . . . . 1 . . . . . 1 . . Repair Stations 6 | . . . . 1 . . . . . . . . . . 2 . 1 . . . . . . 1 1 Recycling Units 9 | . 2 . 2 1 . . . . . 2 . . . . 1 . . . . . . 1 . . . Scanalyzers 8 | . . 2 . 1 2 . . . . 2 . . . . . . . . . . . . . 1 . Garrison Access 11 | . . . 1 1 2 . . . . 2 . . . . . . . . . . . 1 2 1 1 Total Hacks 243 | . 17 19 15 29 56 1 1 . . 15 6 . 28 . 7 . 9 . . . . 11 11 9 9 Successful 146 | . 7 15 8 21 31 1 1 . . 13 6 . 28 . . . 4 . . . . 3 4 4 . Failed 95 | . 10 3 7 8 25 . . . . 1 . . . . 7 . 5 . . . . 8 7 5 9 Catastrophic 23 | . 2 . 3 3 3 . . . . . . . . . 3 . . . . . . . 1 3 5 Database Lockouts 2 | . . 1 . . . . . . . 1 . . . . . . . . . . . . . . . Manual 156 | . 11 3 5 16 29 . . . . 15 . . . . 5 . 9 8 1 . 8 3 12 20 11 Terminals 91 | . 13 9 11 18 34 . . . . . . . . . . . . . . . . 6 . . . Fabricators 23 | . . . . . 7 . . . . 7 . . . . . . 5 . . . . . 4 . . Repair Stations 18 | . . . . 2 . . . . . . . . . . 5 . 4 . . . . . . 2 5 Recycling Units 15 | . 4 . 3 2 . . . . . 3 . . . . 2 . . . . . . 1 . . . Scanalyzers 35 | . . 10 . 5 12 . . . . 2 . . . . . . . . . . . . . 6 . Garrison Access 25 | . . . 1 2 3 . . . . 3 . . . . . . . . . . . 4 7 1 4 Terminal Hacks 62 | . 3 4 5 6 7 1 1 . . . 6 . 28 . . . . . . . . 1 . . . Record 16 | . . . . . . . . . . . 5 . 11 . . . . . . . . . . . . Part Schematic 15 | . . . 1 . 2 . . . . . . . 12 . . . . . . . . . . . . Robot Schematic 3 | . 1 . . . . . . . . . . . 2 . . . . . . . . . . . . Robot Analysis 2 | . . 2 . . . . . . . . . . . . . . . . . . . . . . . Prototype ID Bank 9 | . 2 1 2 . 1 . . . . . . . 3 . . . . . . . . . . . . Open Door 3 | . . . . . . 1 1 . . . 1 . . . . . . . . . . . . . . Open DSF 1 | . . . . . . . . . . . . . . . . . . . . . . 1 . . . Branch Access Points 2 | . . 1 . . 1 . . . . . . . . . . . . . . . . . . . . Terminal Index 2 | . . . . 1 1 . . . . . . . . . . . . . . . . . . . . Scanalyzer Index 1 | . . . . . 1 . . . . . . . . . . . . . . . . . . . . Alert Level 1 | . . . . 1 . . . . . . . . . . . . . . . . . . . . . Unreport Threat 1 | . . . 1 . . . . . . . . . . . . . . . . . . . . . . Maintenance Status 1 | . . . . . 1 . . . . . . . . . . . . . . . . . . . . Hauler Manifests 1 | . . . . 1 . . . . . . . . . . . . . . . . . . . . . Zone Layout 4 | . . . 1 3 . . . . . . . . . . . . . . . . . . . . . Fabricator Hacks 12 | . . . . . 3 . . . . 6 . . . . . . 1 . . . . . 2 . . Network Status 2 | . . . . . 1 . . . . . . . . . . . . . . . . . 1 . . Load Schematic 7 | . . . . . 2 . . . . 3 . . . . . . 1 . . . . . 1 . . Build 3 | . . . . . . . . . . 3 . . . . . . . . . . . . . . . Repair Station Hacks 4 | . . . . 2 . . . . . . . . . . . . 2 . . . . . . . . Scan Component 2 | . . . . 1 . . . . . . . . . . . . 1 . . . . . . . . Repair 2 | . . . . 1 . . . . . . . . . . . . 1 . . . . . . . . Recycling Unit Hacks 5 | . 1 . . . . . . . . 3 . . . . . . . . . . . 1 . . . Retrieve Matter 1 | . . . . . . . . . . 1 . . . . . . . . . . . . . . . Retrieve Components 4 | . 1 . . . . . . . . 2 . . . . . . . . . . . 1 . . . Scanalyzer 29 | . . 9 . 5 11 . . . . 1 . . . . . . . . . . . . . 3 . Insert Component 12 | . . 5 . 2 4 . . . . . . . . . . . . . . . . . . 1 . Analyze 9 | . . 3 . 2 4 . . . . . . . . . . . . . . . . . . . . Retrieve Study 8 | . . 1 . 1 3 . . . . 1 . . . . . . . . . . . . . 2 . Garrison Access Hacks 8 | . . . 1 1 2 . . . . 2 . . . . . . . . . . . 1 1 . . Unlock Access 1 | . . . 1 . . . . . . . . . . . . . . . . . . . . . . Seal Access 7 | . . . . 1 2 . . . . 2 . . . . . . . . . . . 1 1 . . Unauthorized Hacks 26 | . 3 2 2 7 8 . . . . 1 . . . . . . 1 . . . . . 1 1 . Terminals 15 | . 1 2 . 6 6 . . . . . . . . . . . . . . . . . . . . Assimilate 2 | . . . . . 2 . . . . . . . . . . . . . . . . . . . . Botnet 9 | . 1 1 . 3 4 . . . . . . . . . . . . . . . . . . . . Disrupt 2 | . . . . 2 . . . . . . . . . . . . . . . . . . . . . Operators 1 | . . . . 1 . . . . . . . . . . . . . . . . . . . . . Skim 1 | . . 1 . . . . . . . . . . . . . . . . . . . . . . . Fabricators 3 | . . . . . 1 . . . . 1 . . . . . . . . . . . . 1 . . Prioritize 1 | . . . . . . . . . . 1 . . . . . . . . . . . . . . . Recompile 2 | . . . . . 1 . . . . . . . . . . . . . . . . . 1 . . Repair Stations 2 | . . . . . . . . . . . . . . . . . 1 . . . . . . 1 . Patch 2 | . . . . . . . . . . . . . . . . . 1 . . . . . . 1 . Recycling Units 5 | . 2 . 2 1 . . . . . . . . . . . . . . . . . . . . . Tunnel 5 | . 2 . 2 1 . . . . . . . . . . . . . . . . . . . . . Scanalyzers 1 | . . . . . 1 . . . . . . . . . . . . . . . . . . . . Extract 1 | . . . . . 1 . . . . . . . . . . . . . . . . . . . . Garrison Access . | . . . . . . . . . . . . . . . . . . . . . . . . . . Data Cores Recovered . | . . . . . . . . . . . . . . . . . . . . . . . . . . Used . | . . . . . . . . . . . . . . . . . . . . . . . . . . Hacking Detections 52 | . 7 6 6 5 16 . . . . 2 . . . . 3 . 2 . . . . . 1 2 2 Full Trace Events 10 | . 2 . . . 2 . . . . 2 . . . . 2 . 1 . . . . . . . 1 Feedback Events 1 | . . . . . 1 . . . . . . . . . . . . . . . . . . . . Corruption 1 | . . . . . 1 . . . . . . . . . . . . . . . . . . . . Feedback Blocked . | . . . . . . . . . . . . . . . . . . . . . . . . . . Robot Schematics Acquired 11 | . 1 . . . . . . 3 . . . . 2 . . . . . . . . . . 5 . Robots Built . | . . . . . . . . . . . . . . . . . . . . . . . . . . Authchips . | . . . . . . . . . . . . . . . . . . . . . . . . . . Time . | . . . . . . . . . . . . . . . . . . . . . . . . . . Total Robot Build Rating . | . . . . . . . . . . . . . . . . . . . . . . . . . . Part Schematics Acquired 66 | . . 3 1 2 8 . . 13 . . . . 12 . . . . . . . . . . 27 . Parts Built 5 | . . . . . . . . . . 5 . . . . . . . . . . . . . . . Authchips 1 | . . . . . . . . . . 1 . . . . . . . . . . . . . . . Time 103 | . . . . . . . . . . 103 . . . . . . . . . . . . . . . Total Part Build Rating 22 | . . . . . . . . . . 22 . . . . . . . . . . . . . . . Part Studies Acquired 8 | . . 1 . 1 3 . . . . 1 . . . . . . . . . . . . . 2 . Parts Repaired 2 | . . . . 1 . . . . . . . . . . . . 1 . . . . . . . . Time 119 | . . . . 51 . . . . . . . . . . . . 68 . . . . . . . . Parts Recycled . | . . . . . . . . . . . . . . . . . . . . . . . . . . Recycled Matter . | . . . . . . . . . . . . . . . . . . . . . . . . . . Retrieved Matter . | . . . . . . . . . . . . . . . . . . . . . . . . . . Retrieved Components 12 | . 1 . . . . . . . . 1 . . . . . . . . . . . 10 . . . Parts Scanalyzed 9 | . . 3 . 2 3 . . . . . . . . . . . . . . . . . . 1 . Part Schematics Acquired 8 | . . 3 . 2 3 . . . . . . . . . . . . . . . . . . . . Parts Damaged 1 | . . . . . . . . . . . . . . . . . . . . . . . . 1 . Bothacking | -11 -10 -9 -9 -8 -7 -7 -7 -7 -6 -6 -6 -6 -6 -5 -5 -5 -5 -5 -5 -5 -5 -4 -3 -3 -3 ------------ Run | Yrd Mat Mat Sto Mat Fac Low Low Zio Pro Fac Low Low Dat Pro Fac Was Fac Ext Cet Arc Hub Fac Res Qua Sec Used RIF Installer . | . . . . . . . . . . . . . . . . . . . . . . . . . . Robots Hacked 2 | . . . 2 . . . . . . . . . . . . . . . . . . . . . . Non-combat 2 | . . . 2 . . . . . . . . . . . . . . . . . . . . . . Combat . | . . . . . . . . . . . . . . . . . . . . . . . . . . Robot Hacks Applied 2 | . . . 2 . . . . . . . . . . . . . . . . . . . . . . no_distress 1 | . . . 1 . . . . . . . . . . . . . . . . . . . . . . find_station 1 | . . . 1 . . . . . . . . . . . . . . . . . . . . . . Relay Couplers Released 5 | . . . . . . . . . . . . . . . . . . . . . . 4 1 . . Machine Destruction 1 | . . . . . . . . . . . . . . . . . . . . . . . 1 . . Programmers 4 | . . . . . . . . . . . . . . . . . . . . . . 4 . . . Fabnet Peak Effective % . | . . . . . . . . . . . . . . . . . . . . . . . . . . Robots Rewired 20 | . . . . . . . . . . . 2 . . . . . . 18 . . . . . . . Allies Hacked 3 | . . . . . . . . . . 1 . . . . . . 1 . . . . . 1 . . Hacks Repelled . | . . . . . . . . . . . . . . . . . . . . . . . . . . Allies | -11 -10 -9 -9 -8 -7 -7 -7 -7 -6 -6 -6 -6 -6 -5 -5 -5 -5 -5 -5 -5 -5 -4 -3 -3 -3 -------- Run | Yrd Mat Mat Sto Mat Fac Low Low Zio Pro Fac Low Low Dat Pro Fac Was Fac Ext Cet Arc Hub Fac Res Qua Sec Total Allies 68 | . . . 10 . 2 . . 6 . 4 2 . . . . . 4 32 5 . 1 . 2 . . Largest Group 17 | . . . 10 7 2 . . 6 6 3 2 1 . . . . 4 17 15 11 8 . 2 . . Highest-Rated Group 778 | . . . 88 64 52 . . 207 207 192 40 20 . . . . 237 585 778 634 563 . 206 . . Highest-Rated Ally 159 | . . . 16 16 26 . . 41 41 96 20 20 . . . . 70 159 159 96 96 . 103 . . Zionite Dispatches 10 | . . . . . . . . . . 2 . . . . . . 2 3 . . 2 . 1 . . Heavy 1 | . . . . . . . . . . . . . . . . . . . . . . . 1 . . Light 1 | . . . . . . . . . . . . . . . . . 1 . . . . . . . . Recon 1 | . . . . . . . . . . . . . . . . . . . . . 1 . . . . Fire 2 | . . . . . . . . . . . . . . . . . . 2 . . . . . . . Melee Resupply 1 | . . . . . . . . . . 1 . . . . . . . . . . . . . . . Offense Resupply 1 | . . . . . . . . . . . . . . . . . . 1 . . . . . . . Heavy Resupply 1 | . . . . . . . . . . . . . . . . . 1 . . . . . . . . Infowar Resupply 2 | . . . . . . . . . . 1 . . . . . . . . . . 1 . . . . Total Orders 19 | . . . . . . . . . . 3 . . . . . . 1 1 . 2 5 . 3 4 . STAY 2 | . . . . . . . . . . . . . . . . . . . . 1 1 . . . . FOLLOW 3 | . . . . . . . . . . . . . . . . . . . . 1 . . 1 1 . DROP 5 | . . . . . . . . . . 2 . . . . . . 1 1 . . 1 . . . . EXPLORE 4 | . . . . . . . . . . . . . . . . . . . . . 3 . 1 . . RETURN 5 | . . . . . . . . . . 1 . . . . . . . . . . . . 1 3 . Ally Attacks 336 | . . . 26 19 . . . . 7 55 5 . . . . . 6 65 42 29 62 . 20 . . Total Damage 10103 | . . . 254 150 . . . . 69 2107 73 . . . . . 141 1236 1272 948 2242 . 1611 . . Kills 64 | . . . 4 2 . . . . 1 19 2 . . . . . . 8 7 3 12 . 6 . . Allies Corrupted 6 | . . . . . . . . . . 1 . . . . . . 1 . . . 4 . . . . Allies Melted 1 | . . . . . . . . . . . . . . . . . . 1 . . . . . . . Intel | -11 -10 -9 -9 -8 -7 -7 -7 -7 -6 -6 -6 -6 -6 -5 -5 -5 -5 -5 -5 -5 -5 -4 -3 -3 -3 ------- Run | Yrd Mat Mat Sto Mat Fac Low Low Zio Pro Fac Low Low Dat Pro Fac Was Fac Ext Cet Arc Hub Fac Res Qua Sec Active Infowar (turns) 17957 | 11 625 900 45 169 604 373 172 547 306 1627 803 989 117 528 508 1347 620 962 402 357 257 841 1269 2542 1036 Optics 14259 | . . . . 169 265 . . . . 1247 803 989 117 528 508 1347 620 962 402 357 257 841 1269 2542 1036 Sensors 8744 | . . . . . 468 373 172 547 306 1627 803 989 117 515 465 297 325 277 . . 12 . . 1219 232 Structural 1 | . 1 . . . . . . . . . . . . . . . . . . . . . . . . Seismic 1580 | 11 624 900 45 . . . . . . . . . . . . . . . . . . . . . . Jamming 2693 | . . . . . . . . . . . . . . . . . . . . . 1 . 565 2127 . Robot Analysis Total 2 | . . 2 . . . . . . . . . . . . . . . . . . . . . . . Derelict Logs Recovered 9 | . . . . . . 1 2 3 1 . . 1 . 1 . . . . . . . . . . . Drone Launches 8 | . . . . . . . . . . 1 . . . . . . . . . . 3 . 2 2 . Drone Recoveries 6 | . . . . . . . . . . 1 . . . . . . . . . . 1 . 2 2 . Zionite Intel Received 9 | . . . . . . . . . . 2 . . . . . . . . . . . . 1 5 1 Main Access 1 | . . . . . . . . . . . . . . . . . . . . . . . . . 1 Branch Access 3 | . . . . . . . . . . 1 . . . . . . . . . . . . 1 1 . Component Stockpiles 1 | . . . . . . . . . . . . . . . . . . . . . . . . 1 . Prototype Stockpiles 1 | . . . . . . . . . . 1 . . . . . . . . . . . . . . . Component Schematics 1 | . . . . . . . . . . . . . . . . . . . . . . . . 1 . Prototype Schematics 1 | . . . . . . . . . . . . . . . . . . . . . . . . 1 . Unaware Schematics 1 | . . . . . . . . . . . . . . . . . . . . . . . . 1 . Exploration | -11 -10 -9 -9 -8 -7 -7 -7 -7 -6 -6 -6 -6 -6 -5 -5 -5 -5 -5 -5 -5 -5 -4 -3 -3 -3 ------------- Run | Yrd Mat Mat Sto Mat Fac Low Low Zio Pro Fac Low Low Dat Pro Fac Was Fac Ext Cet Arc Hub Fac Res Qua Sec Turns Passed 22339 | 79 1209 1029 1425 2261 617 487 174 547 306 1627 803 989 117 528 508 1347 620 962 402 357 257 841 1269 2542 1036 Spaces Moved 14622 | 41 553 503 757 770 1571 686 410 1008 492 1405 486 754 96 436 390 742 308 384 177 74 128 383 549 1175 344 Core 8 | 8 . . . . . . . . . . . . . . . . . . . . . . . . . Treads 4979 | 33 156 . . 566 . . . . . . . . . . . 702 308 384 177 74 128 383 549 1175 344 Legs 2833 | . . . . . . . . . . 631 486 754 96 436 390 40 . . . . . . . . . Wheels 1861 | . 397 503 757 204 . . . . . . . . . . . . . . . . . . . . . Hover 229 | . . . . . . . . . . 229 . . . . . . . . . . . . . . . Flight 4712 | . . . . . 1571 686 410 1008 492 545 . . . . . . . . . . . . . . . Fastest Speed 28 | 50 135 130 135 135 31 31 31 31 31 28 120 120 120 105 102 102 160 160 160 160 160 160 160 155 155 Average Speed 110 | 138 170 140 149 208 31 31 31 31 31 78 120 120 120 107 102 156 160 160 160 160 160 160 160 161 158 Slowest Speed 320 | 160 320 150 150 312 31 31 31 31 31 190 120 120 120 120 105 160 160 160 160 160 160 160 165 166 235 Overloaded Moves . | . . . . . . . . . . . . . . . . . . . . . . . . . . Propulsion Burnouts . | . . . . . . . . . . . . . . . . . . . . . . . . . . Robots Hopped 32 | . . . . . 19 . . . 1 11 . . . . . . . 1 . . . . . . . Potential Cave-ins 7 | . . . . . . . . . . . . . . . . . . . . . . . . 7 . Cave-ins Triggered . | . . . . . . . . . . . . . . . . . . . . . . . . . . Teleports 3 | . . . . . . . . . . . . . . . . . . . . . . . . . 3 Exploration Rate (%) 57 | 4 83 48 84 51 48 68 53 90 71 44 65 84 80 77 18 100 9 76 70 79 34 13 24 89 24 Regions Visited 25 Branch Regions 15 Pre-discovered Areas 8 | . 2 . 2 1 . . . 2 . . . . 1 . . . . . . . . . . . . Known Exits Taken 14 | . . 1 . . 1 1 1 1 1 1 1 1 1 1 . . 1 . . . . . 1 1 . Unknown Exits Taken 9 | 1 1 . 1 1 . . . . . . . . . . . . . 1 1 1 1 1 . . . Scrap Searched 23 | . . . . . . 2 1 4 4 . 9 3 . . . . . . . . . . . . . Spaces Dug 92 | . . 1 . 2 4 10 3 . 1 10 . . . 8 4 4 2 . . . 1 5 10 21 6 Terrain Destroyed 461 | . . 3 7 34 4 48 3 . 1 59 5 48 . 25 19 14 11 21 4 5 4 72 24 40 10 Melee 42 | . . 1 . 2 4 10 3 . 1 10 . . . . 4 . . . . . 1 5 1 . . Projectile 139 | . . . . . . . . . . . . . . . . 11 4 7 3 5 3 40 18 38 10 AOE 258 | . . 2 7 32 . 38 . . . 47 . 48 . 24 14 . 6 13 . . . 27 . . . Terrain Rammed . | . . . . . . . . . . . . . . . . . . . . . . . . . . Walls Destroyed . | . . . . . . . . . . . . . . . . . . . . . . . . . . Machines Disabled . | . . . . . . . . . . . . . . . . . . . . . . . . . . Actions | -11 -10 -9 -9 -8 -7 -7 -7 -7 -6 -6 -6 -6 -6 -5 -5 -5 -5 -5 -5 -5 -5 -4 -3 -3 -3 --------- Run | Yrd Mat Mat Sto Mat Fac Low Low Zio Pro Fac Low Low Dat Pro Fac Was Fac Ext Cet Arc Hub Fac Res Qua Sec Total 18965 | 54 713 700 982 1178 1641 913 449 1240 625 1793 655 828 97 476 457 830 393 659 250 277 164 515 821 1626 629 Wait 2275 | 3 66 57 73 184 29 189 36 227 118 255 134 56 . 11 23 13 31 47 8 171 15 54 144 214 117 Move 14535 | 40 552 502 756 769 1533 685 409 1007 489 1382 485 753 95 435 390 741 307 381 176 73 127 382 548 1174 344 Hop 31 | . . . . . 18 . . . 1 11 . . . . . . . 1 . . . . . . . Pick Up 187 | 1 23 18 20 26 7 . . 1 1 4 . . . 1 7 5 12 8 10 . 2 7 10 18 6 Fast Attach 174 | 7 1 5 2 12 6 1 . 1 2 34 5 4 . 7 5 9 2 9 6 5 1 2 6 27 15 Attach 64 | . . 5 2 7 1 . . 1 2 6 . . . 1 4 1 1 6 . . 2 2 4 12 7 Detach 29 | . 1 2 1 1 . . . . 2 4 . . . 1 4 . . 1 1 . . . 1 9 1 Swap 244 | . 12 13 21 21 13 10 1 . . 11 . 3 2 2 4 4 7 5 10 5 7 13 31 29 20 Drop 270 | . 1 22 22 29 14 2 . 2 1 25 4 5 . 8 2 12 8 10 17 5 4 6 11 45 15 Fire 825 | 3 56 73 36 125 . 5 . . . 40 24 6 . 10 12 45 23 28 16 18 5 41 62 97 100 Melee 120 | . . 3 12 3 20 21 3 1 9 21 . . . . 5 . 1 2 6 . 1 7 1 1 3 Ram 1 | . . . 1 . . . . . . . . . . . . . . . . . . . . . . Kick 1 | . . . . . . . . . . . . . . . 1 . . . . . . . . . . Crush 8 | . 1 . . 1 . . . . . . . . . . . . . 1 . . . 1 3 . 1 Escape Stasis . | . . . . . . . . . . . . . . . . . . . . . . . . . . Rewire 164 | . . . . . . . . . . . 3 . . . . . 1 160 . . . . . . . Trap 36 | . . . 36 . . . . . . . . . . . . . . . . . . . . . . Miscellaneous 1 | . . . . . . . . . . . . 1 . . . . . . . . . . . . . Route ------- -11/Scrapyard -10/Materials (discovered 4 exits: *Mat x2 / [*Min] / [*Sub]) -9/Materials (discovered 3 exits: *Min / *Sto x2) -9/Storage (discovered 2 exits: *Mat / Gar) -8/Materials -7/Factory (discovered 3 exits: *Fac / *Low x2) -7/Lower Caves -7/Lower Caves -7/Zion -6/Proximity Caves -6/Factory (discovered 5 exits: *Fac x3 / *Low x2) -6/Lower Caves -6/Lower Caves -6/Data Miner -5/Proximity Caves -5/Factory -5/Waste -5/Factory -5/Extension (discovered 2 exits: *Fac / *Cet) -5/Cetus (discovered 2 exits: *Fac / [*Arc]) -5/Archives (discovered 3 exits: *Fac / *Hub x2) -5/Hub_04(d) -4/Factory (discovered 2 exits: *Res x2) -3/Research (discovered 2 exits: *Qua x2) -3/Quarantine (discovered 2 exits: *Sec / [*Frg]) -3/Section 7 (discovered 1 exit: Res) History --------- Turn | Location | Event 26 | -11/Scrapyard | Discovered new exit (range 15) 80 | -11/Scrapyard | Entered Materials 316 | -10/Materials | Build established: Mutant 480 | -10/Materials | Discovered new exit (range 9) 580 | -10/Materials | Derelicts attacked the area 669 | -10/Materials | Discovered new exit (range 13) 756 | -10/Materials | Discovered new exit (range 7) 1033 | -10/Materials | Discovered new exit (range 14) 1056 | -10/Materials | Core integrity fell below 50% 1289 | -10/Materials | Entered another Materials area 1289 | -9/Materials | Evolved 2 slots: Propulsion x1, Utility x1 1339 | -9/Materials | Central database locked down 1373 | -9/Materials | Discovered new exit (range 11) 1569 | -9/Materials | Discovered new exit (range 16) 1721 | -9/Materials | Build established: Scavenger-Mutant 1942 | -9/Materials | Identified exit to Mines 1942 | -9/Materials | Identified exit to Storage 2112 | -9/Materials | Build established: Mutant 2318 | -9/Materials | Entered Storage 2371 | -9/Storage | Identified exit to Garrison 2634 | -9/Storage | Met 01-MTF 2729 | -9/Storage | Found Prototype Protection 2729 | -9/Storage | Identified Lgt. Regenerative Plating 3338 | -9/Storage | Discovered new exit (range 16) 3377 | -9/Storage | Core integrity fell below 50% 3539 | -9/Storage | Assisted by bots powering up and referring to "LRC-V3" 3615 | -9/Storage | Lost 3 allies 3743 | -9/Storage | Entered Materials 3743 | -8/Materials | Accompanied by 8 allies (01-MTF) 3743 | -8/Materials | Evolved 2 slots: Propulsion x1, Utility x1 3746 | -8/Materials | 01-MTF left 3836 | -8/Materials | Build established: Commander-Mutant 3973 | -8/Materials | Lost 7 allies 4239 | -8/Materials | Build established: Mutant 4539 | -8/Materials | Repaired Cld. Ion Engine 4661 | -8/Materials | Discovered new exit (range 7) 5532 | -8/Materials | Build established: Scavenger-Mutant 6004 | -8/Materials | Entered Factory 6004 | -7/Factory | Evolved 2 slots: Utility x1, Weapon x1 6332 | -7/Factory | Discovered new exit (range 10) 6345 | -7/Factory | Identified exit to Factory 6366 | -7/Factory | Identified exit to Lower Caves 6558 | -7/Factory | Build established: Hacker-Sprinter 6621 | -7/Factory | Entered Lower Caves 6624 | -7/Lower Caves | Ambushed by wild Derelicts 6954 | -7/Lower Caves | Encountered a Warlord checkpoint 6995 | -7/Lower Caves | Identified exit to Lower Caves 7108 | -7/Lower Caves | Entered another Lower Caves area 7275 | -7/Lower Caves | Learned Factory interactive machine intel 7277 | -7/Lower Caves | Discovered new exit (range 7) 7279 | -7/Lower Caves | Identified exit to Zion 7282 | -7/Lower Caves | Entered Zion 7287 | -7/Zion | Acquired unknown access codes intercepted by a Zionite 7301 | -7/Zion | Given the Hacking Drone Bay 7306 | -7/Zion | Found CR-A16's Pointy Stick 7331 | -7/Zion | System corruption cleaned by Quarantine Array 7370 | -7/Zion | Gained Derelict followers 7378 | -7/Zion | Learned location of Armory (-4) 7399 | -7/Zion | Learned Factory garrison access intel 7404 | -7/Zion | Identified exit to Proximity Caves 7441 | -7/Zion | Given A8's code to call for help 7457 | -7/Zion | Received a visual enhancement algorithm 7544 | -7/Zion | Met Imprinter 7549 | -7/Zion | Imprinted 7551 | -7/Zion | Declared Zion's savior 7595 | -7/Zion | Found Prototype Device 7829 | -7/Zion | Entered Proximity Caves 7829 | -6/Proximity Caves | Accompanied by 6 allies 7909 | -6/Proximity Caves | Spotter reported a threat 7970 | -6/Proximity Caves | Spotted B-75 Beast 8012 | -6/Proximity Caves | Revealed the true nature of CR-A16's Pointy Stick 8016 | -6/Proximity Caves | Destroyed B-75 Beast 8045 | -6/Proximity Caves | Lost 3 parts (1p1u1w) 8116 | -6/Proximity Caves | Learned Factory stockpile data 8126 | -6/Proximity Caves | Discovered exit to Factory (range 7) 8135 | -6/Proximity Caves | Entered Factory 8135 | -6/Factory | Evolved 2 slots: Propulsion x1, Utility x1 8137 | -6/Factory | Loaded intel: 54 interactive machine locations 8138 | -6/Factory | Loaded intel: 4 garrison access locations 8198 | -6/Factory | Identified Hacking Drone Bay 8218 | -6/Factory | Retrieved Zion intel report: Branch Access 8218 | -6/Factory | Identified exit to Lower Caves 8272 | -6/Factory | Retrieved Zion intel report: Prototype Stockpiles 8301 | -6/Factory | Fabricated Hyp. Gauss Rifle (x2) 8331 | -6/Factory | Fabricated Hyp. Gauss Rifle (x2) 8409 | -6/Factory | Discovered new exit (range 10) 8450 | -6/Factory | Fabricated Imp. Flight Unit? 8452 | -6/Factory | Identified exit to Factory 8582 | -6/Factory | Garrison activated, responded to threat 8769 | -6/Factory | Discovered exit to Factory (range 5) 8795 | -6/Factory | Enhanced Grunt warped into view, answering call for help 8799 | -6/Factory | Enhanced Grunt warped into view, answering call for help 8830 | -6/Factory | Lost 4 parts (1p1u2w) 9108 | -6/Factory | Build established: Scavenger-Skirmisher 9185 | -6/Factory | First assault squad dispatched 9270 | -6/Factory | Central database locked down 9292 | -6/Factory | Zion Infowar Resupply teleported in 9321 | -6/Factory | Discovered exit to Factory (range 7) 9353 | -6/Factory | Zion Melee Resupply teleported in 9444 | -6/Factory | Terminal network hard line cut 9762 | -6/Factory | Entered Lower Caves 9819 | -6/Lower Caves | Entered an active Warlord outpost 9836 | -6/Lower Caves | Learned Factory emergency access door positions 9836 | -6/Lower Caves | Learned Extension terminal intel 9836 | -6/Lower Caves | Learned Armory garrison access intel 9952 | -6/Lower Caves | Attacked by a faux Warlord 10556 | -6/Lower Caves | Discovered new exit (range 5) 10562 | -6/Lower Caves | Identified exit to Lower Caves 10565 | -6/Lower Caves | Entered another Lower Caves area 10565 | -6/Lower Caves | Accompanied by 1 ally 10993 | -6/Lower Caves | Activated DRS Beacon 11181 | -6/Lower Caves | Spotted B-75 Beast 11422 | -6/Lower Caves | Identified exit to Data Miner 11554 | -6/Lower Caves | Entered Data Miner 11554 | -6/Data Miner | Discovered new exit (range 6) 11563 | -6/Data Miner | Identified exit to Proximity Caves 11572 | -6/Data Miner | Met Data Miner 11600 | -6/Data Miner | Learned location of Section 7 (-3) 11600 | -6/Data Miner | Acquired the access code to Warlord's prototype stash 11620 | -6/Data Miner | Received God Mode back door access code from Data Miner 11671 | -6/Data Miner | Entered Proximity Caves 11730 | -5/Proximity Caves | Encountered a Derelict guarding a broken Freighter 11769 | -5/Proximity Caves | Found Prototype Device 11769 | -5/Proximity Caves | Identified Exp. Thermal Shield 11788 | -5/Proximity Caves | Found Prototype Hackware 11788 | -5/Proximity Caves | Identified Exp. System Shield 11976 | -5/Proximity Caves | Spotter reported a threat 12169 | -5/Proximity Caves | Discovered exit to Factory (range 9) 12199 | -5/Proximity Caves | Entered Factory 12199 | -5/Factory | Evolved 2 slots: Propulsion x1, Weapon x1 12200 | -5/Factory | Identified exit to Upper Caves 12638 | -5/Factory | Incoming investigation squad redirected 12707 | -5/Factory | Sucked down chute 12707 | -5/Factory | Entered Waste 12714 | -5/Waste | Spotted C-40 Crusher 12730 | -5/Waste | Destroyed C-40 Crusher 12770 | -5/Waste | Spotted C-40 Crusher 12800 | -5/Waste | Spotted C-40 Crusher 12816 | -5/Waste | Destroyed C-40 Crusher 12833 | -5/Waste | Spotted C-40 Crusher 12837 | -5/Waste | Spotted C-40 Crusher 12843 | -5/Waste | Crushed by Compactor (0 parts destroyed, 1 dropped) 12905 | -5/Waste | Destroyed C-40 Crusher 12949 | -5/Waste | Destroyed C-40 Crusher 13062 | -5/Waste | Spotted C-40 Crusher 13101 | -5/Waste | Crushed by Compactor (1 part destroyed, 1 dropped) 13104 | -5/Waste | Crushed by Compactor (1 part destroyed) 13118 | -5/Waste | Destroyed C-40 Crusher 13161 | -5/Waste | Destroyed C-40 Crusher 13270 | -5/Waste | Build established: Scavenger-Tank 13325 | -5/Waste | Discovered new exit (range 13) 14027 | -5/Waste | Identified exit to Factory 14054 | -5/Waste | Entered Factory 14086 | -5/Factory | Zion Heavy Resupply teleported in 14235 | -5/Factory | Repaired Com. HERF Cannon? 14457 | -5/Factory | Spotted B-75 Beast 14512 | -5/Factory | Destroyed B-75 Beast 14549 | -5/Factory | Incoming investigation squad redirected 14601 | -5/Factory | Zion Light squad teleported in 14608 | -5/Factory | Discovered new exit (range 6) 14669 | -5/Factory | Identified exit to Extension 14674 | -5/Factory | Entered Extension 14674 | -5/Extension | Accompanied by 3 allies 14675 | -5/Extension | Loaded intel: 16 terminal locations 14875 | -5/Extension | Rescued a captive Derelict 14876 | -5/Extension | Rescued a captive Derelict 14937 | -5/Extension | Zion Fire squad teleported in 14942 | -5/Extension | Rescued a captive Derelict 14943 | -5/Extension | Rescued a captive Derelict 15117 | -5/Extension | Spotted B-75 Beast 15136 | -5/Extension | Spotted B-75 Beast 15166 | -5/Extension | Destroyed B-75 Beast 15179 | -5/Extension | Allies destroyed B-75 Beast 15195 | -5/Extension | Destroyed 7 combat bots 15200 | -5/Extension | Lost 4 parts (1n1u2w) 15204 | -5/Extension | Lost 8 allies 15260 | -5/Extension | Rescued a captive Derelict 15273 | -5/Extension | Zion Offense Resupply teleported in 15301 | -5/Extension | Rescued a captive Derelict 15311 | -5/Extension | Energy Cycler disabled 15311 | -5/Extension | Rescued a captive Derelict 15312 | -5/Extension | Rescued a captive Derelict 15313 | -5/Extension | Rescued a captive Derelict 15313 | -5/Extension | Rescued a captive Derelict 15315 | -5/Extension | Rescued a captive Derelict 15348 | -5/Extension | Zion Fire squad teleported in 15366 | -5/Extension | Lost 7 allies 15403 | -5/Extension | Rescued A7 15579 | -5/Extension | Discovered new exit (range 10) 15580 | -5/Extension | Discovered new exit (range 6) 15636 | -5/Extension | Entered Cetus 15636 | -5/Cetus | Accompanied by 15 allies (A7) 15641 | -5/Cetus | Acquired a Cetus Manufacturing Module code from A7 15651 | -5/Cetus | Spotted Cetus Guard 15652 | -5/Cetus | Spotted Cetus Guard 15653 | -5/Cetus | Spotted Cetus Guard 15660 | -5/Cetus | Allies destroyed Cetus Guard 15661 | -5/Cetus | Spotted Cetus Guard 15674 | -5/Cetus | Allies destroyed Cetus Guard 15675 | -5/Cetus | Allies destroyed Cetus Guard 15681 | -5/Cetus | Allies destroyed Cetus Guard 15707 | -5/Cetus | Lost 4 allies 15794 | -5/Cetus | Started Cetus Manufacturing Module 15807 | -5/Cetus | Escorted A7 to Cetus Mainframe 15816 | -5/Cetus | Discovered new exit (range 21) 15819 | -5/Cetus | Manufactured an Enhanced Grunt 15844 | -5/Cetus | Manufactured an Enhanced Grunt 15851 | -5/Cetus | Spotted Cetus Guard 15852 | -5/Cetus | Spotted Cetus Guard 15853 | -5/Cetus | Spotted Cetus Guard 15854 | -5/Cetus | Spotted Cetus Guard 15861 | -5/Cetus | Allies destroyed Cetus Guard 15861 | -5/Cetus | Discovered new exit (range 22) 15869 | -5/Cetus | Manufactured an Enhanced Grunt 15874 | -5/Cetus | Destroyed Cetus Guard 15874 | -5/Cetus | Destroyed Cetus Guard 15880 | -5/Cetus | Allies destroyed Cetus Guard 15894 | -5/Cetus | Manufactured an Enhanced Grunt 15904 | -5/Cetus | Scared off Revision 17 15909 | -5/Cetus | Lost 4 allies 15919 | -5/Cetus | Manufactured an Enhanced Grunt 16009 | -5/Cetus | Murdered A7 16013 | -5/Cetus | Extracted ID and sensor layout for unrecognized location from A7's data core 16021 | -5/Cetus | Found Corrupted Prototype Protection 16021 | -5/Cetus | Identified Med. Regenerative Plating 16038 | -5/Cetus | Entered Archives 16038 | -5/Archives | Accompanied by 11 allies 16092 | -5/Archives | Discovered new exit (range 22) 16097 | -5/Archives | Lost 4 allies 16286 | -5/Archives | Discovered new exit (range 22) 16300 | -5/Archives | Discovered new exit (range 14) 16395 | -5/Archives | Entered Hub_04(d) 16395 | -5/Hub_04(d) | Accompanied by 7 allies 16411 | -5/Hub_04(d) | Zion Infowar Resupply teleported in 16504 | -5/Hub_04(d) | Zion Recon squad teleported in 16571 | -5/Hub_04(d) | Discovered new exit (range 11) 16605 | -5/Hub_04(d) | Network Hub disabled 16633 | -5/Hub_04(d) | Spotted Lightning 16633 | -5/Hub_04(d) | Spotted Lightning 16633 | -5/Hub_04(d) | Spotted Lightning 16636 | -5/Hub_04(d) | Network Hub disabled 16651 | -5/Hub_04(d) | System corruption reached 10% 16652 | -5/Hub_04(d) | Entered Factory 16652 | -4/Factory | Evolved 2 slots: Utility x1, Weapon x1 16682 | -4/Factory | Lost 7 allies 16905 | -4/Factory | Discovered new exit (range 22) 16930 | -4/Factory | Build established: Scavenger-Gunner 17007 | -4/Factory | Garrison activated, responded to threat 17300 | -4/Factory | Discovered new exit (range 7) 17493 | -4/Factory | Entered Research 17493 | -3/Research | Evolved 2 slots: Power x1, Utility x1 17784 | -3/Research | Build established: Scavenger-Tank 18381 | -3/Research | System corruption reached 10% 18446 | -3/Research | Retrieved Zion intel report: Branch Access 18446 | -3/Research | Identified exit to Quarantine 18450 | -3/Research | Zion Heavy squad teleported in 18644 | -3/Research | Found Prototype Protection 18645 | -3/Research | Identified Zio. Weapon Casing 18743 | -3/Research | First assault squad dispatched 18762 | -3/Research | Entered Quarantine 19079 | -3/Quarantine | Discovered new exit (range 12) 19124 | -3/Quarantine | Found Alien Slashing Weapon 19136 | -3/Quarantine | Identified exit to Research 19162 | -3/Quarantine | Build established: Scavenger-Skirmisher 19167 | -3/Quarantine | Retrieved Zion intel report: Component Stockpiles 19205 | -3/Quarantine | Cryocooling Duct disabled 19220 | -3/Quarantine | Ambient heat levels rising (+20) 19220 | -3/Quarantine | Non-combat units ordered to evacuate 19295 | -3/Quarantine | Retrieved Zion intel report: Prototype Schematics 19420 | -3/Quarantine | Destroyed 7 combat bots 19478 | -3/Quarantine | Found Alien Artifact 19514 | -3/Quarantine | Found Alien Reactor 19597 | -3/Quarantine | Found Alien Impact Weapon 19804 | -3/Quarantine | Retrieved Zion intel report: Component Schematics 19901 | -3/Quarantine | Retrieved Zion intel report: Unaware Schematics 19970 | -3/Quarantine | Incoming investigation squad redirected 19987 | -3/Quarantine | Retrieved Zion intel report: Branch Access 20048 | -3/Quarantine | Identified Matter Drive 20105 | -3/Quarantine | Terminal network hard line cut 20222 | -3/Quarantine | Identified Phase Armor 20303 | -3/Quarantine | Destroyed 7 combat bots 20327 | -3/Quarantine | Found Alien Artifact 20487 | -3/Quarantine | Build established: Scavenger-Tank 20589 | -3/Quarantine | System corruption reached 30% 20681 | -3/Quarantine | Found Alien Artifact 20681 | -3/Quarantine | Identified Core Reset Matrix 20681 | -3/Quarantine | Identified Sigix Broadsword 20681 | -3/Quarantine | Identified Subatomic Replicator 20681 | -3/Quarantine | Identified Core Stripper 20681 | -3/Quarantine | Used Core Reset Matrix 20685 | -3/Quarantine | Detected hypermatrix surge 20685 | -3/Quarantine | Sensed 4 artifacts in vicinity 20750 | -3/Quarantine | Spotted Fortress 21063 | -3/Quarantine | Destroyed Fortress 21072 | -3/Quarantine | Found Prototype Device 21072 | -3/Quarantine | Identified Exp. Force Field 21083 | -3/Quarantine | Found Prototype Device 21083 | -3/Quarantine | Identified Thermal Barrier 21095 | -3/Quarantine | Found Prototype Device 21095 | -3/Quarantine | Identified Exp. EM Shield 21110 | -3/Quarantine | Found Prototype Protection 21110 | -3/Quarantine | Identified Centrium Heavy Armor Plating 21116 | -3/Quarantine | Found Unknown Protection 21116 | -3/Quarantine | Identified Hvy. Insulated Plating 21122 | -3/Quarantine | Found Prototype Reactor 21122 | -3/Quarantine | Identified Vortex Chain Reactor 21296 | -3/Quarantine | Discovered new exit (range 5) 21296 | -3/Quarantine | Discovered new exit (range 6) 21301 | -3/Quarantine | Identified exit to Section 7 21304 | -3/Quarantine | Entered Section 7 21305 | -3/Section 7 | Detected hypermatrix surge 21305 | -3/Section 7 | Sensed 22 artifacts in vicinity 21417 | -3/Section 7 | Spotted S7 Guard 21430 | -3/Section 7 | Destroyed S7 Guard 21548 | -3/Section 7 | Found Prototype Protection 21548 | -3/Section 7 | Identified Hvy. Regenerative Plating 21554 | -3/Section 7 | First assault squad dispatched 21670 | -3/Section 7 | Found Navigation Efficiency Matrix 21844 | -3/Section 7 | Spotted B-86 Titan 21866 | -3/Section 7 | Incoming investigation squad redirected 21888 | -3/Section 7 | Destroyed B-86 Titan 21945 | -3/Section 7 | Destroyed 7 combat bots 21947 | -3/Section 7 | Retrieved Zion intel report: Main Access 22064 | -3/Section 7 | Garrison activated, responded to threat 22090 | -3/Section 7 | Build established: Tank 22127 | -3/Section 7 | Destroyed 10 combat bots 22189 | -3/Section 7 | Installed Navigation Efficiency Matrix, process failed with unexpected side effects 22260 | -3/Section 7 | Found Integrated Reactor 22260 | -3/Section 7 | Installed Integrated Reactor, increased core energy generation (+10) 22337 | -3/Section 7 | Core integrity fell below 50% 22340 | -3/Section 7 | Self-destructed Last Messages --------------- 22330_ Slug penetrates S-43 Plague. 22330_ S-43 Plague destroyed. 22331_ Y-72 Warden heat damages Unknown Device, Unknown Protection. 22331_ M-36 Artificer repairs Y-72 Warden. 22332_ Cld. Phase Gun destroyed. 22332_ System corrupted by crushing effect (+3). 22332_ Med. Treads destroyed. 22333_ M-36 Artificer fits Unknown Hover Unit on Y-72 Warden. 22333_ Penetrated by Slug. 22333_ Slug penetrates Wall. 22336_ Imp. Quantum Reactor destroyed. 22336_ S-43 Plague destroyed. 22337_ B-74 Champion overheating. 22338_ B-74 Champion heat damages Unknown Reactor, Unknown Protection, Med. Treads. 22338_ B-74 Champion destroyed. 22339_ Penetrated by Slug. 22339_ Slug penetrates Wall. Map ----- +----------------------------------------------------+ | ??????????# """"" + #?# ???????????????? | | ??????????# # #?# ??????????????? | | ??????????########### #?# ????????????? | | ??????????? ???# #?# ???????????? | | ???????????"""""""??# #?######## ??????????? | | ?????????" """""""??# #????????? #?????????? | | ?????????" """"""" ?# #?????????? #?????!???? | | ?????????? ?# #?????????? #?????????? | | ???????????""""""" + #??????????? #?????????? | | ???????????""""""" # #???????????? #?????????? | | ???????????""""""" + #???????????? #?????????? | | ???????# #%####?????????????#?????????? | | ???????# # #??????????????????????????? | | ???????# ] ] ?# #??????????????????????????? | | ???????# ?#=#??????????????????????????? | | ???????###### ####??#!#??????????????????????????? | | ????????????#???????#%#??????????????????????????? | | ??????????????????###+######?????????????????????? | | ??????????????????# Y #?##??????????????????? | | ??????????????????# =%[ #? ???????????????????? | | ??????????????????# % # ???????????????????? | | ??????????????????# # ????????????????????? | | ??????????????????# !! g/?????????????????????? | | ??????????????????# !!/ #?????????????????????? | | ??????????????????# !l%g#?????????????????????? | | ??????????????????# @ #?????????????????????? | | ??????????????????#* #?????????????????????? | | ??????????????????######## #?????????????????????? | | ??????????????????????????##?????????????????????? | | ?????????????????????????????????????????????????? | | ?????????????????????????????????????????????????? | | ?????????????????????????????????????????????????? | | ?????????????????????????????????????????????????? | | ??????????????????????????????????????????????!??? | | ?????????????????????????????????????????????????? | | ?????????????????????????????????????????????????? | | ?????????????????????????????????????????????????? | | ?????????????????????????????????????????????????? | | ?????????????????????????????????????????????????? | | ?????????????????????????????????????????????????? | | ?????????????????????????????????????????????????? | | ?????????????????????????????????????????????????? | | ?????????????????????????????????????????????????? | | ?????????????????????????????????????????????????? | | ??????????????????????????????